[Event "Galatasaray Blitz Chess Tournament"]
[Site "Istanbul"]
[Date "2019.03.24"]
[Round "12.1"]
[White "Gokerkan, Cem Kaan"]
[Black "Tuncer, Tuna"]
[Result "1-0"]
[ECO "B20"]
[WhiteElo "2419"]
[BlackElo "2371"]
[Annotator "NA"]
[PlyCount "75"]
[EventDate "2019.03.24"]
[EventType "swiss"]
[EventCountry "TUR"]
[SourceTitle "playchess.com"]
[Source "ChessBase"]
[SourceQuality "1"]
[TimeControl "180+2"]

1. e4 {[%emt 0:00:00]} c5 {[%emt 0:00:00]} 2. Ne2 {[%emt 0:00:02]} Nc6 {[%emt 0:00:02]} 3. g3 {[%emt 0:00:02]} g6 {[%emt 0:00:02]} 4. Bg2 {[%emt 0:00:02]} Bg7 {[%emt 0:00:02]} 5. c3 {[%emt 0:00:02]} e5 {[%emt 0:00:02]} 6. O-O {[%emt 0:00:02]} Nge7 {[%emt 0:00:02]} 7. d3 {[%emt 0:00:02]} O-O {[%emt 0:00:02]} 8. Na3 {[%emt 0:00:02]} d6 {[%emt 0:00:02]} 9. Nc2 {[%emt 0:00:02]} Be6 {[%emt 0:00:50]} 10. d4 {[%emt 0:00:58]} cxd4 {[%emt 0:00:00]} 11. cxd4 {[%emt 0:00:02]} d5 {[%emt 0:00:02]} 12. dxe5 {[%emt 0:00:02]} dxe4 {[%emt 0:00:02]} 13. Bg5 {[%emt 0:00:41]} Bxe5 {[%emt 0:00:18]} 14. Nc3 {[%emt 0:00:08]} f5 {[%emt 0:00:13]} 15. Qe2 {[%emt 0:00:25]} Qb6 {[%emt 0:00:39]} 16. Rab1 {[%emt 0:00:04]} Nd5 {[%emt 0:00:09]} 17. Nxd5 {[%emt 0:00:13]} Bxd5 {[%emt 0:00:02]} 18. Be3 {[%emt 0:00:17]} Qc7 {[%emt 0:00:03]} 19. b4 {[%emt 0:00:06]} Qf7 {[%emt 0:00:13]} 20. Bc5 {[%emt 0:00:02]} Bc4 {[%emt 0:00:06]} 21. Qe3 {[%emt 0:00:08]} Bxf1 {[%emt 0:00:03]} 22. Bxf1 {[%emt 0:00:08]} Rfd8 {[%emt 0:00:10]} 23. f3 {[%emt 0:00:02]} b6 {[%emt 0:00:04]} 24. b5 {[%emt 0:00:10]} Na5 {[%emt 0:00:10]} 25. Bd4 {[%emt 0:00:04]} Bxd4 {[%emt 0:00:05]} 26. Nxd4 {[%emt 0:00:00]} Qd5 {[%emt 0:00:07]} 27. Rd1 {[%emt 0:00:02]} Rac8 {[%emt 0:00:02]} 28. Bg2 {[%emt 0:00:03]} Rc4 {[%emt 0:00:09]} 29. fxe4 {[%emt 0:00:01]} Qe5 {[%emt 0:00:00]} 30. Qg5 {[%emt 0:00:05]} Rcxd4 {[%emt 0:00:09]} 31. Qxd8+ {[%emt 0:00:00]} Rxd8 {[%emt 0:00:02]} 32. Rxd8+ {[%emt 0:00:00]} Kg7 {[%emt 0:00:02]} 33. exf5 {[%emt 0:00:00]} Qe1+ {[%emt 0:00:02]} 34. Bf1 {[%emt 0:00:00]} gxf5 {[%emt 0:00:02]} 35. Rd7+ {[%emt 0:00:02]} Kf6 {[%emt 0:00:02]} 36. Rd6+ {[%emt 0:00:02]} Ke5 {[%emt 0:00:02]} 37. Rd7 {[%emt 0:00:02]} Nc4 {[%emt 0:00:02]} 38. Re7+ {[%emt 0:00:02]} 1-0

[Event "Galatasaray Blitz Chess Tournament"]
[Site "Istanbul"]
[Date "2019.03.24"]
[Round "12.2"]
[White "Gulbas, Cemil"]
[Black "Yurtseven, Melih"]
[Result "0-1"]
[ECO "B12"]
[WhiteElo "2404"]
[BlackElo "2390"]
[Annotator "NA"]
[PlyCount "63"]
[EventDate "2019.03.24"]
[EventType "swiss"]
[EventCountry "TUR"]
[SourceTitle "playchess.com"]
[Source "ChessBase"]
[SourceQuality "1"]
[TimeControl "180+2"]

1. e4 {[%emt 0:00:00]} c6 {[%emt 0:00:00]} 2. d4 {[%emt 0:00:02]} d5 {[%emt 0:00:02]} 3. e5 {[%emt 0:00:02]} Bf5 {[%emt 0:00:02]} 4. Nc3 {[%emt 0:00:02]} e6 {[%emt 0:00:02]} 5. g4 {[%emt 0:00:02]} Bg6 {[%emt 0:00:02]} 6. Nge2 {[%emt 0:00:02]} h6 {[%emt 0:00:02]} 7. Be3 {[%emt 0:00:02]} Nd7 {[%emt 0:00:02]} 8. Qd2 {[%emt 0:00:02]} Ne7 {[%emt 0:00:02]} 9. f4 {[%emt 0:00:02]} Bh7 {[%emt 0:00:02]} 10. O-O-O {[%emt 0:00:02]} b5 {[%emt 0:00:02]} 11. Ng3 {[%emt 0:00:02]} Nb6 {[%emt 0:00:02]} 12. b3 {[%emt 0:00:02]} a5 {[%emt 0:00:02]} 13. Bd3 {[%emt 0:00:02]} Bxd3 {[%emt 0:00:02]} 14. Qxd3 {[%emt 0:00:37]} a4 {[%emt 0:01:03]} 15. Kb1 {[%emt 0:00:01]} Qd7 {[%emt 0:00:57]} 16. f5 {[%emt 0:00:07]} g6 {[%emt 0:00:19]} 17. fxe6 {[%emt 0:00:07]} Qxe6 {[%emt 0:00:20]} 18. Rhf1 {[%emt 0:00:09]} Bg7 {[%emt 0:00:01]} 19. Qd2 {[%emt 0:00:23]} Qxg4 {[%emt 0:00:04]} 20. Nce2 {[%emt 0:00:28]} g5 {[%emt 0:00:11]} 21. Qb4 {[%emt 0:00:20]} Qe6 {[%emt 0:00:02]} 22. Nh5 {[%emt 0:00:04]} O-O {[%emt 0:00:06]} 23. h4 {[%emt 0:00:17]} axb3 {[%emt 0:00:01]} 24. axb3 {[%emt 0:00:03]} Nc4 {[%emt 0:00:04]} 25. Bc1 {[%emt 0:00:11]} c5 {[%emt 0:00:07]} 26. Qxb5 {[%emt 0:00:21]} Rfb8 {[%emt 0:00:01]} 27. Qxb8+ {[%emt 0:00:14]} Rxb8 {[%emt 0:00:02]} 28. hxg5 {[%emt 0:00:05]} hxg5 {[%emt 0:00:03]} 29. Nf6+ {[%emt 0:00:04]} Kf8 {[%emt 0:00:04]} 30. Bxg5 {[%emt 0:00:02]} Ng6 {[%emt 0:00:02]} 31. Rh1 {[%emt 0:00:02]} Qa6 {[%emt 0:00:01]} 32. dxc5 {[%emt 0:00:05]} 0-1

[Event "Galatasaray Blitz Chess Tournament"]
[Site "Istanbul"]
[Date "2019.03.24"]
[Round "15.3"]
[White "Ozer, Omer Faruk"]
[Black "Gulbas, Cemil"]
[Result "0-1"]
[ECO "B07"]
[WhiteElo "2369"]
[BlackElo "2404"]
[Annotator "NA"]
[PlyCount "86"]
[EventDate "2019.03.24"]
[EventType "swiss"]
[EventCountry "TUR"]
[SourceTitle "playchess.com"]
[Source "ChessBase"]
[SourceQuality "1"]
[TimeControl "180+2"]

1. e4 {[%emt 0:00:02]} d6 {[%emt 0:00:00]} 2. d4 {[%emt 0:00:01]} Nf6 {[%emt 0:00:00]} 3. Nc3 {[%emt 0:00:01]} g6 {[%emt 0:00:00]} 4. Bg5 {[%emt 0:00:01]} h6 {[%emt 0:00:05]} 5. Bxf6 {[%emt 0:00:02]} exf6 {[%emt 0:00:00]} 6. Bd3 {[%emt 0:00:05]} Bg7 {[%emt 0:00:02]} 7. Nge2 {[%emt 0:00:00]} c6 {[%emt 0:00:01]} 8. O-O {[%emt 0:00:11]} O-O {[%emt 0:00:02]} 9. f4 {[%emt 0:00:09]} Re8 {[%emt 0:00:25]} 10. f5 {[%emt 0:00:03]} Nd7 {[%emt 0:00:06]} 11. Kh1 {[%emt 0:00:02]} Nf8 {[%emt 0:00:03]} 12. Nf4 {[%emt 0:00:18]} Qb6 {[%emt 0:00:05]} 13. fxg6 {[%emt 0:01:04]} fxg6 {[%emt 0:00:04]} 14. Bc4+ {[%emt 0:00:04]} Kh7 {[%emt 0:00:08]} 15. Bb3 {[%emt 0:00:04]} f5 {[%emt 0:00:11]} 16. exf5 {[%emt 0:00:33]} Bxf5 {[%emt 0:00:02]} 17. Nce2 {[%emt 0:00:01]} d5 {[%emt 0:00:06]} 18. c3 {[%emt 0:00:02]} Re3 {[%emt 0:00:48]} 19. Ng3 {[%emt 0:00:02]} Bd7 {[%emt 0:00:16]} 20. Nd3 {[%emt 0:00:16]} Rae8 {[%emt 0:00:08]} 21. Bc2 {[%emt 0:00:03]} Bc8 {[%emt 0:00:08]} 22. Rf7 {[%emt 0:00:20]} Be6 {[%emt 0:00:07]} 23. Rf3 {[%emt 0:00:02]} Bg4 {[%emt 0:00:05]} 24. Qf1 {[%emt 0:00:10]} Bxf3 {[%emt 0:00:03]} 25. gxf3 {[%emt 0:00:01]} Qd8 {[%emt 0:00:21]} 26. f4 {[%emt 0:00:02]} Qh4 {[%emt 0:00:09]} 27. Kg2 {[%emt 0:00:00]} Ne6 {[%emt 0:00:11]} 28. f5 {[%emt 0:00:06]} Ng5 {[%emt 0:00:02]} 29. fxg6+ {[%emt 0:00:03]} Kg8 {[%emt 0:00:02]} 30. Nf2 {[%emt 0:00:06]} Rf8 {[%emt 0:00:02]} 31. Re1 {[%emt 0:00:03]} Ref3 {[%emt 0:00:02]} 32. Re2 {[%emt 0:00:00]} c5 {[%emt 0:00:12]} 33. dxc5 {[%emt 0:00:02]} d4 {[%emt 0:00:00]} 34. Bb3+ {[%emt 0:00:01]} Kh8 {[%emt 0:00:00]} 35. Qe1 {[%emt 0:00:02]} dxc3 {[%emt 0:00:05]} 36. bxc3 {[%emt 0:00:02]} Bxc3 {[%emt 0:00:01]} 37. Qc1 {[%emt 0:00:00]} Bg7 {[%emt 0:00:05]} 38. Bd5 {[%emt 0:00:04]} Rxf2+ {[%emt 0:00:03]} 39. Rxf2 {[%emt 0:00:02]} Rxf2+ {[%emt 0:00:01]} 40. Kxf2 {[%emt 0:00:02]} Qxh2+ {[%emt 0:00:03]} 41. Kf1 {[%emt 0:00:04]} Qxg3 {[%emt 0:00:00]} 42. Qc4 {[%emt 0:00:02]} Qh3+ {[%emt 0:00:01]} 43. Ke1 {[%emt 0:00:02]} Qc3+ {[%emt 0:00:04]} 0-1

[Event "Galatasaray Blitz Chess Tournament"]
[Site "Istanbul"]
[Date "2019.03.24"]
[Round "15.4"]
[White "Arat, Ufuk Sezen"]
[Black "Tuncer, Tuna"]
[Result "0-1"]
[ECO "D02"]
[WhiteElo "2368"]
[BlackElo "2371"]
[Annotator "NA"]
[PlyCount "78"]
[EventDate "2019.03.24"]
[EventType "swiss"]
[EventCountry "TUR"]
[SourceTitle "playchess.com"]
[Source "ChessBase"]
[SourceQuality "1"]
[TimeControl "180+2"]

1. d4 {[%emt 0:00:00]} Nf6 {[%emt 0:00:03]} 2. Nf3 {[%emt 0:00:02]} g6 {[%emt 0:00:01]} 3. Nbd2 {[%emt 0:00:01]} d5 {[%emt 0:00:01]} 4. b4 {[%emt 0:00:00]} Bg7 {[%emt 0:00:05]} 5. Bb2 {[%emt 0:00:00]} O-O {[%emt 0:00:03]} 6. e3 {[%emt 0:00:01]} Nbd7 {[%emt 0:00:13]} 7. c4 {[%emt 0:00:02]} c6 {[%emt 0:00:07]} 8. Be2 {[%emt 0:00:02]} Ne4 {[%emt 0:00:02]} 9. O-O {[%emt 0:00:08]} f5 {[%emt 0:00:20]} 10. b5 {[%emt 0:00:11]} e6 {[%emt 0:00:31]} 11. bxc6 {[%emt 0:00:32]} bxc6 {[%emt 0:00:01]} 12. Qa4 {[%emt 0:00:01]} Nb6 {[%emt 0:00:03]} 13. Qa5 {[%emt 0:00:35]} Nxd2 {[%emt 0:00:26]} 14. Nxd2 {[%emt 0:00:02]} c5 {[%emt 0:00:01]} 15. Qxc5 {[%emt 0:00:11]} Na4 {[%emt 0:00:02]} 16. Qa3 {[%emt 0:00:00]} Nxb2 {[%emt 0:00:05]} 17. Qxb2 {[%emt 0:00:01]} f4 {[%emt 0:00:03]} 18. cxd5 {[%emt 0:00:20]} exd5 {[%emt 0:00:03]} 19. Qb3 {[%emt 0:00:22]} fxe3 {[%emt 0:00:05]} 20. fxe3 {[%emt 0:00:05]} Re8 {[%emt 0:00:14]} 21. Nf3 {[%emt 0:00:01]} Bf5 {[%emt 0:00:08]} 22. Rfe1 {[%emt 0:00:37]} Rb8 {[%emt 0:00:02]} 23. Qa3 {[%emt 0:00:01]} a5 {[%emt 0:00:20]} 24. Qc1 {[%emt 0:00:18]} Rc8 {[%emt 0:00:04]} 25. Qd2 {[%emt 0:00:01]} Rc2 {[%emt 0:00:02]} 26. Qd1 {[%emt 0:00:03]} Rxe3 {[%emt 0:00:05]} 27. Bf1 {[%emt 0:00:10]} Rxe1 {[%emt 0:00:05]} 28. Qxe1 {[%emt 0:00:01]} Be4 {[%emt 0:00:00]} 29. Ne5 {[%emt 0:00:05]} Qb6 {[%emt 0:00:00]} 30. Rd1 {[%emt 0:00:04]} Bxe5 {[%emt 0:00:08]} 31. Kh1 {[%emt 0:00:01]} Bxd4 {[%emt 0:00:09]} 32. Qh4 {[%emt 0:00:01]} Bf6 {[%emt 0:00:00]} 33. Qf4 {[%emt 0:00:01]} Kg7 {[%emt 0:00:06]} 34. Re1 {[%emt 0:00:05]} Qf2 {[%emt 0:00:02]} 35. Qxf2 {[%emt 0:00:00]} Rxf2 {[%emt 0:00:01]} 36. a4 {[%emt 0:00:01]} Bf5 {[%emt 0:00:03]} 37. Kg1 {[%emt 0:00:06]} d4 {[%emt 0:00:01]} 38. Bb5 {[%emt 0:00:02]} Ra2 {[%emt 0:00:02]} 39. Rd1 {[%emt 0:00:00]} d3 {[%emt 0:00:04]} 0-1

[Event "Galatasaray Blitz Chess Tournament"]
[Site "Istanbul"]
[Date "2019.03.24"]
[Round "16.2"]
[White "Yurtseven, Melih"]
[Black "Arat, Ufuk Sezen"]
[Result "0-1"]
[ECO "E91"]
[WhiteElo "2390"]
[BlackElo "2368"]
[Annotator "NA"]
[PlyCount "98"]
[EventDate "2019.03.24"]
[EventType "swiss"]
[EventCountry "TUR"]
[SourceTitle "playchess.com"]
[Source "ChessBase"]
[SourceQuality "1"]
[TimeControl "180+2"]

1. d4 {[%emt 0:00:00]} Nf6 {[%emt 0:00:02]} 2. Nf3 {[%emt 0:00:03]} g6 {[%emt 0:00:02]} 3. c4 {[%emt 0:00:07]} Bg7 {[%emt 0:00:02]} 4. Nc3 {[%emt 0:00:16]} O-O {[%emt 0:00:03]} 5. e4 {[%emt 0:00:00]} d6 {[%emt 0:00:01]} 6. Be2 {[%emt 0:00:04]} Na6 {[%emt 0:00:19]} 7. Bg5 {[%emt 0:00:19]} h6 {[%emt 0:00:05]} 8. Be3 {[%emt 0:00:01]} c5 {[%emt 0:00:03]} 9. d5 {[%emt 0:00:09]} e6 {[%emt 0:00:28]} 10. h3 {[%emt 0:00:03]} exd5 {[%emt 0:00:08]} 11. exd5 {[%emt 0:00:08]} Bf5 {[%emt 0:00:12]} 12. Nd2 {[%emt 0:00:15]} Re8 {[%emt 0:00:12]} 13. a3 {[%emt 0:00:18]} Nc7 {[%emt 0:00:02]} 14. O-O {[%emt 0:00:03]} b5 {[%emt 0:00:22]} 15. Re1 {[%emt 0:00:34]} Rb8 {[%emt 0:00:08]} 16. Bf3 {[%emt 0:00:06]} a6 {[%emt 0:00:24]} 17. Rc1 {[%emt 0:00:07]} Bd3 {[%emt 0:00:05]} 18. b3 {[%emt 0:00:06]} Nd7 {[%emt 0:00:16]} 19. Nde4 {[%emt 0:00:09]} Ne5 {[%emt 0:00:00]} 20. cxb5 {[%emt 0:00:14]} axb5 {[%emt 0:00:07]} 21. Bf4 {[%emt 0:00:02]} c4 {[%emt 0:00:25]} 22. b4 {[%emt 0:00:05]} f5 {[%emt 0:00:11]} 23. Nd2 {[%emt 0:00:09]} g5 {[%emt 0:00:02]} 24. Bh2 {[%emt 0:00:00]} Qf6 {[%emt 0:00:04]} 25. Bh5 {[%emt 0:00:03]} Rf8 {[%emt 0:00:00]} 26. Nf3 {[%emt 0:00:06]} Ng6 {[%emt 0:00:05]} 27. Qd2 {[%emt 0:00:04]} Rbe8 {[%emt 0:00:02]} 28. Rxe8 {[%emt 0:00:02]} Rxe8 {[%emt 0:00:02]} 29. Ne1 {[%emt 0:00:02]} f4 {[%emt 0:00:00]} 30. Nxd3 {[%emt 0:00:08]} cxd3 {[%emt 0:00:01]} 31. Qxd3 {[%emt 0:00:02]} Ne5 {[%emt 0:00:02]} 32. Qd1 {[%emt 0:00:02]} Rf8 {[%emt 0:00:02]} 33. Ne4 {[%emt 0:00:02]} Qe7 {[%emt 0:00:02]} 34. f3 {[%emt 0:00:02]} Nc4 {[%emt 0:00:02]} 35. Kh1 {[%emt 0:00:02]} Ne3 {[%emt 0:00:02]} 36. Qd2 {[%emt 0:00:02]} Ncxd5 {[%emt 0:00:02]} 37. Bg1 {[%emt 0:00:02]} Kh8 {[%emt 0:00:02]} 38. Rc6 {[%emt 0:00:02]} Rd8 {[%emt 0:00:02]} 39. Kh2 {[%emt 0:00:02]} Nf6 {[%emt 0:00:02]} 40. Bg6 {[%emt 0:00:02]} Nc4 {[%emt 0:00:02]} 41. Qd3 {[%emt 0:00:02]} Ne5 {[%emt 0:00:02]} 42. Qc2 {[%emt 0:00:02]} Nxc6 {[%emt 0:00:02]} 43. Qxc6 {[%emt 0:00:02]} Nxe4 {[%emt 0:00:02]} 44. Bxe4 {[%emt 0:00:02]} Qe5 {[%emt 0:00:02]} 45. Qc7 {[%emt 0:00:02]} Re8 {[%emt 0:00:02]} 46. Bb6 {[%emt 0:00:09]} d5 {[%emt 0:00:01]} 47. Qc6 {[%emt 0:00:02]} dxe4 {[%emt 0:00:02]} 48. fxe4 {[%emt 0:00:02]} f3+ {[%emt 0:00:02]} 49. g3 {[%emt 0:00:02]} Qxe4 {[%emt 0:00:00]} 0-1

[Event "Galatasaray Blitz Chess Tournament"]
[Site "Istanbul"]
[Date "2019.03.24"]
[Round "16.3"]
[White "Tuncer, Tuna"]
[Black "Ozer, Omer Faruk"]
[Result "1/2-1/2"]
[ECO "C45"]
[WhiteElo "2371"]
[BlackElo "2369"]
[Annotator "NA"]
[PlyCount "54"]
[EventDate "2019.03.24"]
[EventType "swiss"]
[EventCountry "TUR"]
[SourceTitle "playchess.com"]
[Source "ChessBase"]
[SourceQuality "1"]
[TimeControl "180+2"]

1. e4 {[%emt 0:00:00]} e5 {[%emt 0:00:06]} 2. Nf3 {[%emt 0:00:01]} Nc6 {[%emt 0:00:00]} 3. d4 {[%emt 0:00:02]} exd4 {[%emt 0:00:03]} 4. Nxd4 {[%emt 0:00:02]} Nf6 {[%emt 0:00:05]} 5. Nxc6 {[%emt 0:00:01]} bxc6 {[%emt 0:00:01]} 6. e5 {[%emt 0:00:01]} Qe7 {[%emt 0:00:00]} 7. Qe2 {[%emt 0:00:01]} Nd5 {[%emt 0:00:02]} 8. h4 {[%emt 0:00:02]} f6 {[%emt 0:00:19]} 9. c4 {[%emt 0:00:03]} Ba6 {[%emt 0:00:09]} 10. Rh3 {[%emt 0:00:01]} fxe5 {[%emt 0:00:58]} 11. Bg5 {[%emt 0:00:02]} Qb4+ {[%emt 0:00:09]} 12. Nd2 {[%emt 0:00:28]} Nf6 {[%emt 0:00:10]} 13. O-O-O {[%emt 0:00:43]} Be7 {[%emt 0:00:33]} 14. Ra3 {[%emt 0:00:36]} Bc8 {[%emt 0:00:04]} 15. Qxe5 {[%emt 0:00:34]} O-O {[%emt 0:00:14]} 16. Bd3 {[%emt 0:00:10]} Bd6 {[%emt 0:00:24]} 17. Qe2 {[%emt 0:00:10]} a5 {[%emt 0:00:09]} 18. Ne4 {[%emt 0:00:12]} Be5 {[%emt 0:00:04]} 19. Nxf6+ {[%emt 0:00:08]} gxf6 {[%emt 0:00:01]} 20. Rb3 {[%emt 0:00:03]} Qc5 {[%emt 0:00:01]} 21. Qe4 {[%emt 0:00:07]} f5 {[%emt 0:00:01]} 22. Qe2 {[%emt 0:00:05]} a4 {[%emt 0:00:02]} 23. Be3 {[%emt 0:00:02]} Qe7 {[%emt 0:00:02]} 24. Ra3 {[%emt 0:00:02]} Rb8 {[%emt 0:00:02]} 25. Bd4 {[%emt 0:00:02]} Bf4+ {[%emt 0:00:02]} 26. Kc2 {[%emt 0:00:02]} Re8 {[%emt 0:00:02]} 27. Rxa4 {[%emt 0:00:02]} d6 {[%emt 0:00:02]} 1/2-1/2

[Event "Galatasaray Blitz Chess Tournament"]
[Site "Istanbul"]
[Date "2019.03.24"]
[Round "17.4"]
[White "Ozer, Omer Faruk"]
[Black "Yurtseven, Melih"]
[Result "0-1"]
[ECO "C00"]
[WhiteElo "2369"]
[BlackElo "2390"]
[Annotator "NA"]
[PlyCount "94"]
[EventDate "2019.03.24"]
[EventType "swiss"]
[EventCountry "TUR"]
[SourceTitle "playchess.com"]
[Source "ChessBase"]
[SourceQuality "1"]
[TimeControl "180+2"]

1. e4 {[%emt 0:00:02]} e6 {[%emt 0:00:00]} 2. d3 {[%emt 0:00:07]} d5 {[%emt 0:00:00]} 3. Nd2 {[%emt 0:00:00]} c5 {[%emt 0:00:01]} 4. Ngf3 {[%emt 0:00:01]} Nc6 {[%emt 0:00:02]} 5. g3 {[%emt 0:00:00]} Nf6 {[%emt 0:00:01]} 6. Bg2 {[%emt 0:00:01]} Be7 {[%emt 0:00:01]} 7. O-O {[%emt 0:00:02]} b6 {[%emt 0:00:03]} 8. Re1 {[%emt 0:00:02]} Bb7 {[%emt 0:00:01]} 9. Qe2 {[%emt 0:00:04]} Qc7 {[%emt 0:00:17]} 10. c3 {[%emt 0:00:03]} h6 {[%emt 0:00:18]} 11. a3 {[%emt 0:00:03]} O-O {[%emt 0:00:17]} 12. e5 {[%emt 0:00:03]} Nd7 {[%emt 0:00:04]} 13. Nf1 {[%emt 0:00:01]} Rfe8 {[%emt 0:00:06]} 14. h4 {[%emt 0:00:02]} f5 {[%emt 0:00:07]} 15. exf6 {[%emt 0:00:12]} Bxf6 {[%emt 0:00:02]} 16. Ne3 {[%emt 0:00:03]} Na5 {[%emt 0:00:22]} 17. Ng4 {[%emt 0:00:05]} Nb3 {[%emt 0:00:01]} 18. Nxf6+ {[%emt 0:00:16]} Nxf6 {[%emt 0:00:05]} 19. Bf4 {[%emt 0:00:03]} e5 {[%emt 0:00:09]} 20. Bxe5 {[%emt 0:00:01]} Qf7 {[%emt 0:00:04]} 21. Rad1 {[%emt 0:00:08]} d4 {[%emt 0:00:03]} 22. Qc2 {[%emt 0:00:10]} Ng4 {[%emt 0:00:06]} 23. Bf4 {[%emt 0:00:04]} dxc3 {[%emt 0:00:19]} 24. bxc3 {[%emt 0:00:02]} Na5 {[%emt 0:00:01]} 25. a4 {[%emt 0:00:34]} Rac8 {[%emt 0:00:01]} 26. Nh2 {[%emt 0:00:30]} Bxg2 {[%emt 0:00:06]} 27. Kxg2 {[%emt 0:00:01]} Qb7+ {[%emt 0:00:17]} 28. Kg1 {[%emt 0:00:03]} Nxh2 {[%emt 0:00:02]} 29. Kxh2 {[%emt 0:00:01]} Qf3 {[%emt 0:00:02]} 30. Kg1 {[%emt 0:00:17]} Kh8 {[%emt 0:00:01]} 31. Qd2 {[%emt 0:00:24]} Rcd8 {[%emt 0:00:05]} 32. Be5 {[%emt 0:00:05]} Kg8 {[%emt 0:00:16]} 33. Qa2+ {[%emt 0:00:08]} Kh7 {[%emt 0:00:04]} 34. Qc2 {[%emt 0:00:11]} Kg8 {[%emt 0:00:08]} 35. d4 {[%emt 0:00:01]} Kh8 {[%emt 0:00:14]} 36. Qg6 {[%emt 0:00:02]} Rxe5 {[%emt 0:00:02]} 37. Rxe5 {[%emt 0:00:02]} Qxd1+ {[%emt 0:00:02]} 38. Kg2 {[%emt 0:00:02]} Qb3 {[%emt 0:00:02]} 39. Re7 {[%emt 0:00:02]} Qg8 {[%emt 0:00:02]} 40. dxc5 {[%emt 0:00:02]} bxc5 {[%emt 0:00:12]} 41. Rxa7 {[%emt 0:00:03]} Nc4 {[%emt 0:00:02]} 42. a5 {[%emt 0:00:03]} Ne5 {[%emt 0:00:02]} 43. Qf5 {[%emt 0:00:11]} Qd5+ {[%emt 0:00:04]} 44. f3 {[%emt 0:00:00]} Qd2+ {[%emt 0:00:08]} 45. Kh3 {[%emt 0:00:03]} Qe2 {[%emt 0:00:01]} 46. Qe4 {[%emt 0:00:11]} Qf1+ {[%emt 0:00:02]} 47. Kh2 {[%emt 0:00:00]} Nxf3+ {[%emt 0:00:01]} 0-1

[Event "Galatasaray Blitz Chess Tournament"]
[Site "Istanbul"]
[Date "2019.03.24"]
[Round "18.5"]
[White "Gulbas, Cemil"]
[Black "Ozturk, Kubra"]
[Result "0-1"]
[ECO "C54"]
[WhiteElo "2404"]
[BlackElo "2344"]
[Annotator "NA"]
[PlyCount "76"]
[EventDate "2019.03.24"]
[EventType "swiss"]
[EventCountry "TUR"]
[SourceTitle "playchess.com"]
[Source "ChessBase"]
[SourceQuality "1"]
[TimeControl "180+2"]

1. e4 {[%emt 0:00:00]} e5 {[%emt 0:00:00]} 2. Nf3 {[%emt 0:00:00]} Nc6 {[%emt 0:00:00]} 3. Bc4 {[%emt 0:00:03]} Bc5 {[%emt 0:00:02]} 4. c3 {[%emt 0:00:00]} Nf6 {[%emt 0:00:00]} 5. d3 {[%emt 0:00:00]} O-O {[%emt 0:00:07]} 6. Bb3 {[%emt 0:00:07]} h6 {[%emt 0:00:34]} 7. Nbd2 {[%emt 0:00:21]} d6 {[%emt 0:00:06]} 8. h3 {[%emt 0:00:04]} Nh5 {[%emt 0:00:23]} 9. Nf1 {[%emt 0:00:30]} Qf6 {[%emt 0:00:15]} 10. g3 {[%emt 0:00:20]} Be6 {[%emt 0:00:16]} 11. Be3 {[%emt 0:00:23]} Rad8 {[%emt 0:00:31]} 12. Nh4 {[%emt 0:00:26]} g6 {[%emt 0:00:12]} 13. Qe2 {[%emt 0:00:07]} Kh7 {[%emt 0:00:10]} 14. O-O-O {[%emt 0:00:05]} a5 {[%emt 0:00:17]} 15. Kb1 {[%emt 0:00:11]} b5 {[%emt 0:00:06]} 16. Bxc5 {[%emt 0:00:15]} dxc5 {[%emt 0:00:01]} 17. Ne3 {[%emt 0:00:01]} a4 {[%emt 0:00:09]} 18. Bxe6 {[%emt 0:00:17]} Qxe6 {[%emt 0:00:02]} 19. Nhg2 {[%emt 0:00:19]} b4 {[%emt 0:00:05]} 20. f4 {[%emt 0:00:05]} bxc3 {[%emt 0:00:07]} 21. f5 {[%emt 0:00:04]} Qe7 {[%emt 0:00:15]} 22. bxc3 {[%emt 0:00:01]} Nxg3 {[%emt 0:00:00]} 23. Qe1 {[%emt 0:00:03]} Nxh1 {[%emt 0:00:01]} 24. Qxh1 {[%emt 0:00:00]} Rb8+ {[%emt 0:00:03]} 25. Ka1 {[%emt 0:00:00]} a3 {[%emt 0:00:02]} 26. Nc4 {[%emt 0:00:02]} Rb7 {[%emt 0:00:04]} 27. Nge3 {[%emt 0:00:01]} Rfb8 {[%emt 0:00:01]} 28. fxg6+ {[%emt 0:00:02]} fxg6 {[%emt 0:00:01]} 29. Qg2 {[%emt 0:00:02]} Qg5 {[%emt 0:00:01]} 30. Qf2 {[%emt 0:00:01]} Qf4 {[%emt 0:00:02]} 31. Qg2 {[%emt 0:00:02]} Rb2 {[%emt 0:00:01]} 32. Qg1 {[%emt 0:00:02]} Rf2 {[%emt 0:00:04]} 33. Nd5 {[%emt 0:00:03]} Qh2 {[%emt 0:00:02]} 34. Qxh2 {[%emt 0:00:03]} Rxh2 {[%emt 0:00:02]} 35. Nxa3 {[%emt 0:00:02]} Ra8 {[%emt 0:00:02]} 36. Nc4 {[%emt 0:00:02]} Raxa2+ {[%emt 0:00:00]} 37. Kb1 {[%emt 0:00:01]} Na5 {[%emt 0:00:04]} 38. Nxe5 {[%emt 0:00:02]} Rab2+ {[%emt 0:00:01]} 0-1